Workbook

Sheet 1
B1: РАСШИФРОВКА | H1: Дата изменения:
B2: по бюджету на 2020 год | H2: Письмо № | I2: фин-ие
B3: МБОУ Изобильненская СОШ-ДС | H3: от
B4: Нижнегорского района Республики Крым
B5: КОСГУ | C5: Наименование статьи | D5: КОД ЦЕЛИ S1520 | E5: КОД ЦЕЛИ 71330 | F5: КОД ЦЕЛИ 01S1490 | G5: КОД ЦЕЛИ 02590 | H5: ВСЕГО по КОСГУ
D6: Республиканский бюджет | E6: Республиканский бюджет | F6: Муниципальный бюджет | G6: Муниципальный бюджет
B7: 211 | C7: оплату труда | E7: 8827085
B8: 211
B9: 211 Итог | H9: =SUM(D7:G8) -> 8827085
B10: 212 | C10: суточные, пособия | E10: 2351.42
B11: 212
B12: 212
B13: 212
B14: 212 Итог | H14: =SUM(D10:G13) -> 2351.42
B15: 213 | C15: начисления на з/плату | E15: 2665780
B16: 213
B17: 213
B18: 213 Итог | H18: =SUM(D15:G17) -> 2665780
B19: 221 | C19: услуг связи «телефон» | G19: 4176
B20: 221 | C20: услуг связи «интернет» | E20: 24000
B21: 221
B22: 221
B23: 221
B24: 221 Итог | H24: =SUM(D19:G23) -> 28176
B25: 222 | C25: транспортные услуги
B26: 222 | C26: оплата проезда и проживания к месту нахождения учебы
B27: 222
B28: 222
B29: 222
B30: 222 Итог | H30: =SUM(D25:G29) -> 0
B31: 223 | C31: водоотведение
B32: 223 | C32: водоснабжение | G32: 1148
B33: 223 | C33: вывоз жидких нечистот
B34: 223 | C34: отопление Джанкойтепло
B35: 223 | C35: отопление Промвентиляция
B36: 223 | C36: электроэнергия | G36: 61459
B37: 223
B38: 223
B39: 223
B40: 223
B41: 223 Итог | H41: =SUM(D31:G40) -> 62607
B42: 225 | C42: вывоз мусора | G42: 4141
B43: 225 | C43: Закупка товаров, работ, услуг в целях капитального ремонта государственного (муниципального) имущества
B44: 225 | C44: дератизация | G44: 6986.63
B45: 225 | C45: заправка картриджей
B46: 225 | C46: огнезащитная обработка
B47: 225 | C47: перезарядка огнетушителей
B48: 225 | C48: поверка монометров, счетчиков …
B49: 225 | C49: пусконаладочные работы
B50: 225 | C50: ТО транспортного средства
B51: 225 | C51: услуги пот ТО, предрейсовый осмотр автобуса
B52: 225 | C52: техническое обслуживание и текущий ремонт компьютерной техники, используемой в организации образовательного процесса
B53: 225 | C53: услуги ремонта
B54: 225 | C54: Производственный контроль
B55: 225 | C55: электролабораторные измерения
B56: 225 | C56: установка противопожарных дверей
B57: 225 | C57: проверка электротоваров
B58: 225 | C58: энергитическое обследование
B59: 225
B60: 225
B61: 225
B62: 225
B63: 225
B64: 225
B65: 225 Итог | H65: =SUM(D42:G64) -> 11127.63
B66: 226 | C66: Завтраки 1-4 кл | D66: 167473
B67: 226 | C67: обработка (аккарицидная, в дез.камеры) | G67: 9681.84
B68: 226 | C68: контур отчетность | G68: 4100
B69: 226 | C69: медицинские услуги
B70: 226 | C70: межевание границ земельного участка (кадастровые работы)
B71: 226 | C71: нотариальные услуги
B72: 226 | C72: оплата юридических и адвокатских услуг
B73: 226 | C73: осуществление строительного контроля
B74: 226 | C74: паспортизация зданий,сооружений, иных основных средств
B75: 226 | C75: подписку и приобретение периодических изданий, используемых в учебных целях
B76: 226 | C76: настройка и обслуживание компьютерной сети
B77: 226 | C77: программное обеспечение технических средств обучения
B78: 226 | C78: Обеды льготники | G78: 226782
B79: 226 | C79: категарирование
B80: 226 | C80: Обеды льготники д.с
B81: 226 | C81: разработка технических условий присоединения к сетям инженерно-технического обеспечения, увеличение мощности
B82: 226 | C82: работы ПСД
B83: 226 | C83: типографские работы, услуги
B84: 226 | C84: техническое обслуживание и текущий ремонт компьютерной техники, используемой в организации образовательного процесса
B85: 226 | C85: техническое обслуживание Пожарной сигнализации | G85: 24614
B86: 226 | C86: услуги по обслуживанию видеонаблюдения | G86: 9000
B87: 226 | C87: услуги и работы по утилизации и захоронению отходов
B88: 226 | C88: спецоценка условий труда
B89: 226 | C89: услуги по заполнению отчетности и др…. | G89: 5000
B90: 226 | C90: услуги по обучению
B91: 226 | C91: Проживание КРИПО
B92: 226 | C92: услуги по организации проведения торгов (аукционов)
B93: 226 | C93: услуги установки и ремонта,Глонасс
B94: 226 | C94: предрейсовый медосмотр водителя
B95: 226 | C95: стоянка автобуса
B96: 226 | C96: питание лагерь
B97: 226 | C97: оплата проезда и проживания к месту нахождения учебы
B98: 226 | C98: монтаж АСПС
B99: 226 | C99: обслуживание тревожной кнопки | G99: 11395
B100: 226
B101: 226
B102: 226 Итог | H102: =SUM(D66:G101) -> 458045.84
B103: 227 | C103: Страхование (водителя,автобуса)
B104: 227
B105: 227
B106: 227
B107: 227 Итог | H107: =SUM(D103:G106) -> 0
B108: 228 | C108: работы ПСД
B109: 228 | C109: Установка пожарной сигнализации и видеонаблюдения
B110: 228
B111: 228
B112: 228
B113: 228
B114: 228 Итог | H114: =SUM(D108:G113) -> 0
B115: 266 | C115: Бол.пособия за первые три дня временной нетрудоспос
B116: 266
B117: 266
B118: 266 Итог | H118: =SUM(D115:G117) -> 0
B119: 291 | C119: 851291
B120: 291 | C120: 852291
B121: 291 | C121: 853291 | G121: 3438
B122: 291
B123: 291 Итог | H123: =SUM(D119:G122) -> 3438
B124: 292 | C124: 853292
B125: 292
B126: 292
B127: 292 Итог | H127: =SUM(D124:G126) -> 0
B128: 293 | C128: 853293
B129: 293
B130: 293
B131: 293 Итог | H131: =SUM(D128:G130) -> 0
B132: 296 | C132: 853296
B133: 296
B134: 296
B135: 296 Итог | H135: =SUM(D132:G134) -> 0
B136: 310 | C136: огнетушители и пожарный инвентарь
B137: 310 | C137: подарок к юбилею
B138: 310 | C138: приобретение игр, игрушек для организации досуга
B139: 310 | C139: приобретение мебели
B140: 310 | C140: приобретение письменных и чертёжных принадлежностей, материалов и инвентаря для учебных занятий обучающихся
B141: 310 | C141: приобретение спортивного оборудования и спортивного инвентаря для обеспечения образовательного процесса
B142: 310 | C142: приобретение учебников | E142: =4267+5202.02 -> 9469.02
B143: 310 | C143: приобретение учебно-наглядных пособий и учебных программ
B144: 310 | C144: формирование библиотечного фонда
B145: 310 | C145: электроинструменты, оборудование
B146: 310 | C146: приобретение учебного оборудования и компьютерной техники, используемой в учебных целях | E146: 15000
B147: 310
B148: 310
B149: 310
B150: 310
B151: 310 Итог | H151: =SUM(D136:G150) -> 24469.02
B152: 341 | C152: медикаменты и перевязочные средства
B153: 341
B154: 341
B155: 341
B156: 341 Итог | H156: =SUM(D152:G155) -> 0
B157: 342 | C157: Завтраки 1-4 кл
B158: 342 | C158: продукты питания льготная категория
B159: 342
B160: 342
B161: 342
B162: 342 Итог | H162: =SUM(D157:G161) -> 0
B163: 343 | C163: уголь
B164: 343 | C164: дрова
B165: 343 | C165: бензин
B166: 343 | C166: ГСМ
B167: 343 | C167: Масло
B168: 343
B169: 343
B170: 343
B171: 343 Итог | H171: =SUM(D163:G170) -> 0
B172: 344 | C172: Стройматериалы( цемент,песок,доводчик дверной
B173: 344 | C173: отопительные котлы
B174: 344 | C174: Электротехнические материалы(лампы,кабель,провод)
B175: 344
B176: 344
B177: 344
B178: 344
B179: 344 Итог | H179: =SUM(D172:G178) -> 0
B180: 345 | C180: Спецодежда
B181: 345 | C181: Постельное белье и принадлежности
B182: 345 | C182: Мягкий инвентарь
B183: 345
B184: 345
B185: 345
B186: 345
B187: 345 Итог | H187: =SUM(D180:G186) -> 0
B188: 346 | C188: Журнально-бланочная продукция | E188: 2500
B189: 346 | C189: Кухонный инвентарь
B190: 346 | C190: Хозяйственные материалы
B191: 346 | C191: Приобретение учебно-наглядныхпособияй и учебных программ
B192: 346 | C192: Спортивное оборудование и спортивный инвентарь для обеспечения образов.процесса
B193: 346 | C193: Запчасти
B194: 346 | C194: Приобретение игр,игрушек для организации досуга
B195: 346 | C195: Канцелярские товары, письменно-чертежные принадлежности | E195: 1500
B196: 346 | C196: Моющие и дезсредства
B197: 346
B198: 346
B199: 346
B200: 346 Итог | H200: =SUM(D188:G199) -> 4000
... 30 more rows

Sheet Список
A1: КОСГУ
A2: 211 | C2: оплату труда
A3: 212 | C3: суточные, пособия
A4: 213 | C4: начисления на з/плату
A5: 221 | B5: 1 | C5: услуг связи «телефон»
B6: 2 | C6: услуг связи «интернет»
A7: 222 | B7: 1 | C7: транспортные услуги
B8: 2 | C8: оплата проезда и проживания к месту нахождения учебы
A9: 223 | B9: 1 | C9: водоотведение
B10: 2 | C10: водоснабжение
B11: 3 | C11: вывоз жидких нечистот
B12: 4 | C12: отопление Джанкойтепло
B13: 5 | C13: отопление Промвентиляция
B14: 6 | C14: электроэнергия
A15: 225 | B15: 1 | C15: вывоз мусора
B16: 2 | C16: Закупка товаров, работ, услуг в целях капитального ремонта государственного (муниципального) имущества
B17: 3 | C17: дератизация
B18: 4 | C18: заправка картриджей
B19: 5 | C19: огнезащитная обработка
B20: 6 | C20: перезарядка огнетушителей
B21: 7 | C21: поверка монометров, счетчиков …
B22: 8 | C22: пусконаладочные работы
B23: 9 | C23: ТО транспортного средства
B24: 10 | C24: услуги пот ТО, предрейсовый осмотр автобуса
B25: 11 | C25: техническое обслуживание и текущий ремонт компьютерной техники, используемой в организации образовательного процесса
B26: 12 | C26: услуги ремонта
B27: 13 | C27: Производственный контроль
B28: 14 | C28: электролабораторные измерения
B29: 15 | C29: проверка электротоваров
B30: 16 | C30: энергитическое обследование
A31: 226 | B31: 1 | C31: обработка (аккарицидная, в дез.камеры)
B32: 2 | C32: контур отчетность
B33: 3 | C33: медицинские услуги
B34: 4 | C34: межевание границ земельного участка (кадастровые работы)
B35: 5 | C35: монтажные работы
B36: 6 | C36: нотариальные услуги
B37: 7 | C37: оплата юридических и адвокатских услуг
B38: 8 | C38: осуществление строительного контроля
B39: 9 | C39: паспортизация зданий,сооружений, иных основных средств
B40: 10 | C40: подписку и приобретение периодических изданий, используемых в учебных целях
B41: 11 | C41: настройка и обслуживание компьютерной сети
B42: 12 | C42: приобретение неисключительных прав, лицензионных прав на ПО
B43: 13 | C43: программное обеспечение технических средств обучения
B44: 14 | C44: работы ПСД
B45: 15 | C45: подписку и приобретение периодических изданий, используемых в учебных целях
B46: 16 | C46: программное обеспечение технических средств обучения
B47: 17 | C47: разработка технических условий присоединения к сетям инженерно-технического обеспечения, увеличение мощности
B48: 18 | C48: техническое обслуживание и текущий ремонт компьютерной техники, используемой в организации образовательного процесса
B49: 19 | C49: техническое обслуживание Пожарной сигнализации
B50: 20 | C50: услуги по обслуживанию видеонаблюдения
B51: 21 | C51: услуги и работы по утилизации и захоронению отходов
B52: 22 | C52: услуги по заполнению отчетности и др….
B53: 23 | C53: услуги по обучению
B54: 24 | C54: Проживание КРИПО
B55: 25 | C55: услуги по организации проведения торгов (аукционов)
B56: 26 | C56: услуги установки и ремонта
B57: 27 | C57: оплата проезда и проживания к месту нахождения учебы
A58: 227 | C58: Страхование (водителя,автобуса)
A59: 228 | C59: Установка пожарной сигнализации и видеонаблюдения
A60: 266 | C60: Бол.пособия за первые три дня временной нетрудоспос
A61: 291 | B61: 1 | C61: Налог на имущество,налог на прибыль
A62: 292 | B62: 1 | C62: Штрафы
A66: 293 | C66: Штрафы
A67: 310 | B67: 1 | C67: огнетушители и пожарный инвентарь
B68: 2 | C68: подарок к юбилею
B69: 3 | C69: приобретение игр, игрушек для организации досуга
B70: 4 | C70: приобретение мебели
B71: 5 | C71: приобретение письменных и чертёжных принадлежностей, материалов и инвентаря для учебных занятий обучающихся
B72: 6 | C72: приобретение спортивного оборудования и спортивного инвентаря для обеспечения образовательного процесса
B73: 7 | C73: приобретение учебников
B74: 8 | C74: приобретение учебного оборудования и компьютерной техники, используемой в учебных целях
B75: 9 | C75: приобретение учебно-наглядных пособий и учебных программ
B76: 10 | C76: формирование библиотечного фонда
B77: 11 | C77: электроинструменты, оборудование
B78: 12 | C78: приобретение учебного оборудования и компьютерной техники, используемой в учебных целях
B79: 13 | C79: приобретение учебников
B80: 14 | C80: приобретение учебно-наглядных пособий и учебных программ
B81: 15 | C81: формирование библиотечного фонда
B82: 16 | C82: приобретение письменных и чертёжных принадлежностей, материалов и инвентаря для учебных занятий обучающихся
B83: 17 | C83: приобретение спортивного оборудования и спортивного инвентаря для обеспечения образовательного процесса
B84: 18 | C84: Табличка
B85: 19 | C85: приобретение игр, игрушек для организации досуга
B86: 20 | C86: приобретение мебели
A87: 341 | B87: 1 | C87: медикаменты и перевязочные средства
A88: 342 | B88: 1 | C88: продукты питания льготная категория
A89: 343 | B89: 1 | C89: уголь
B90: 2 | C90: дрова
B91: 3 | C91: бензин
B92: 4 | C92: ГСМ
B93: 5 | C93: Масло
A94: 344 | B94: 1 | C94: Стройматериалы( цемент,песок,доводчик дверной
B95: 2 | C95: отопительные котлы
B96: 3 | C96: Электротехническте материалы(лампы,кабель,провод)
A97: 345 | B97: 1 | C97: Спецодежда
B98: 2 | C98: Постельное белье и принадлежности
B99: 3 | C99: Мягкий инвентарь
A100: 346 | B100: 1 | C100: Журнально-бланочная продукция
B101: 2 | C101: Кухонный инвентарь
B102: 3 | C102: Хозяйственные материалы
B103: 4 | C103: Учебно-наглядные пособия
B104: 5 | C104: Спортивное оборудование и спортивный инвентарь
B105: 6 | C105: Запчасти
B106: 7 | C106: Канцелярские товары, письменно-чертежные принадлежности
B107: 8 | C107: Моющие и дезсредства
A108: 349 | B108: 1 | C108: Аттестаты, приложения
B109: 2 | C109: Трудовые книжки
B110: 3 | C110: Грамоты,медали,футляры
